{"text_format":"3","workbook":"xlsx","n_sheets":6,"sheets":["Dashboard","Verkopen","Inkomsten","Uitgaven","Belastingen","Categorieën"],"not_rendered":{"images":1,"defined_names":34},"read":"whole","date_system":"1900"}

{"sheet":"Dashboard","index":0,"n_rows":19,"n_cols":8,"rows_kept":19,"merged":[[0,2,0,4],[0,6,3,7],[4,1,4,7]]}
[null,"Winst-en verliesrekening","Voor [maand of jaar] eindigend op [Dag-Maand-Jaar]"]
[null,"Bedrijfsnaam","Vermeld in duizenden"]
[null,"Huidige brutomarge  [L/J]",{"$f":"IFERROR(IF(Totale_brutowinst=0,\"-\",Totale_brutowinst/Totale_omzet),\"-\")","v":"-"}]
[null,"Huidig rendement [T/J]",{"$f":"IFERROR(IF(Nettowinst=0,\"-\",Nettowinst/Totale_omzet),\"-\")","v":"-"}]
[null,"Wijzig de categorieën in dit werkblad niet: hierdoor kunnen de formules mogelijk corrupt raken. Gebruik het werkblad Categorie om categorieën toe te voegen en de bijbehorende werkbladen met gegevens bij te werken. Dit werkblad zal automatisch worden bijgewerkt."]
[null,"Overzicht","Totaal van vorige periode","Totale begroting","Totaal actueel\nPeriode","Totaal van huidige periode als % van verkopen","Totale % wijziging t.o.v. vorige periode","Totale % wijziging t.o.v. begroting"]
[null,"Totale omzet  [J]",{"$f":"SUMIFS(Omzet_1[Vorige periode],Omzet_1[Type inkomsten],\"Omzet\")","v":0},{"$f":"SUMIFS(Omzet_1[Begroting],Omzet_1[Type inkomsten],\"Omzet\")","v":0},{"$f":"SUMIFS(Omzet_1[Huidige periode],Omzet_1[Type inkomsten],\"Omzet\")","v":0},{"$f":"SUMIFS(Omzet_1[Huidige periode als % van verkopen],Omzet_1[Type inkomsten],\"Omzet\")","v":{"v":0,"d":"0.00%"}},{"$f":"SUMIFS(Omzet_1[% wijziging t.o.v. vorige periode],Omzet_1[Type inkomsten],\"Omzet\")","v":{"v":0,"d":"0.00%"}},{"$f":"SUMIFS(Omzet_1[% wijziging t.o.v. begroting],Omzet_1[Type inkomsten],\"Omzet\")","v":{"v":0,"d":"0.00%"}}]
[null,"Totale verkoopkosten  [K]",{"$f":"SUMIFS(Omzet_1[Vorige periode],Omzet_1[Type inkomsten],\"Verkoopkosten\")","v":0},{"$f":"SUMIFS(Omzet_1[Begroting],Omzet_1[Type inkomsten],\"Verkoopkosten\")","v":0},{"$f":"SUMIFS(Omzet_1[Huidige periode],Omzet_1[Type inkomsten],\"Verkoopkosten\")","v":0},{"$f":"SUMIFS(Omzet_1[Huidige periode als % van verkopen],Omzet_1[Type inkomsten],\"Verkoopkosten\")","v":{"v":0,"d":"0.00%"}},{"$f":"SUMIFS(Omzet_1[% wijziging t.o.v. vorige periode],Omzet_1[Type inkomsten],\"Verkoopkosten\")","v":{"v":0,"d":"0.00%"}},{"$f":"SUMIFS(Omzet_1[% wijziging t.o.v. begroting],Omzet_1[Type inkomsten],\"Verkoopkosten\")","v":{"v":0,"d":"0.00%"}}]
[null,"Totale uitgaven voor verkoop en marketing..[M]",{"$f":"SUMIFS(OperationeleUitgaven[Vorige periode],OperationeleUitgaven[Onkostentype],\"Verkoop en marketing\")","v":0},{"$f":"SUMIFS(OperationeleUitgaven[Begroting],OperationeleUitgaven[Onkostentype],\"Verkoop en marketing\")","v":0},{"$f":"SUMIFS(OperationeleUitgaven[Huidige periode],OperationeleUitgaven[Onkostentype],\"Verkoop en marketing\")","v":0},{"$f":"SUMIFS(OperationeleUitgaven[Huidige periode als % van verkopen],OperationeleUitgaven[Onkostentype],\"Verkoop en marketing\")","v":{"v":0,"d":"0.00%"}},{"$f":"SUMIFS(OperationeleUitgaven[% wijziging t.o.v. vorige periode],OperationeleUitgaven[Onkostentype],\"Verkoop en marketing\")","v":{"v":0,"d":"0.00%"}},{"$f":"SUMIFS(OperationeleUitgaven[% wijziging t.o.v. begroting],OperationeleUitgaven[Onkostentype],\"Verkoop en marketing\")","v":{"v":0,"d":"0.00%"}}]
[null,"Totale uitgaven voor onderzoek en ontwikkeling  [N]",{"$f":"SUMIFS(OperationeleUitgaven[Vorige periode],OperationeleUitgaven[Onkostentype],\"Onderzoek en ontwikkeling\")","v":0},{"$f":"SUMIFS(OperationeleUitgaven[Begroting],OperationeleUitgaven[Onkostentype],\"Onderzoek en ontwikkeling\")","v":0},{"$f":"SUMIFS(OperationeleUitgaven[Huidige periode],OperationeleUitgaven[Onkostentype],\"Onderzoek en ontwikkeling\")","v":0},{"$f":"SUMIFS(OperationeleUitgaven[Huidige periode als % van verkopen],OperationeleUitgaven[Onkostentype],\"Onderzoek en ontwikkeling\")","v":{"v":0,"d":"0.00%"}},{"$f":"SUMIFS(OperationeleUitgaven[% wijziging t.o.v. vorige periode],OperationeleUitgaven[Onkostentype],\"Onderzoek en ontwikkeling\")","v":{"v":0,"d":"0.00%"}},{"$f":"SUMIFS(OperationeleUitgaven[% wijziging t.o.v. begroting],OperationeleUitgaven[Onkostentype],\"Onderzoek en ontwikkeling\")","v":{"v":0,"d":"0.00%"}}]
[null,"Totale uitgaven voor algemeen en administratie  [O]",{"$f":"SUMIFS(OperationeleUitgaven[Vorige periode],OperationeleUitgaven[Onkostentype],\"Algemeen en administratief\")","v":0},{"$f":"SUMIFS(OperationeleUitgaven[Begroting],OperationeleUitgaven[Onkostentype],\"Algemeen en administratief\")","v":0},{"$f":"SUMIFS(OperationeleUitgaven[Huidige periode],OperationeleUitgaven[Onkostentype],\"Algemeen en administratief\")","v":0},{"$f":"SUMIFS(OperationeleUitgaven[Huidige periode als % van verkopen],OperationeleUitgaven[Onkostentype],\"Algemeen en administratief\")","v":{"v":0,"d":"0.00%"}},{"$f":"SUMIFS(OperationeleUitgaven[% wijziging t.o.v. vorige periode],OperationeleUitgaven[Onkostentype],\"Algemeen en administratief\")","v":{"v":0,"d":"0.00%"}},{"$f":"SUMIFS(OperationeleUitgaven[% wijziging t.o.v. begroting],OperationeleUitgaven[Onkostentype],\"Algemeen en administratief\")","v":{"v":0,"d":"0.00%"}}]
[null,"Totale andere operationele uitgaven [P]",{"$f":"OperationeleUitgaven[[#Totals],[Vorige periode]]-SUM(C9:C11)","v":0},{"$f":"OperationeleUitgaven[[#Totals],[Begroting]]-SUM(D9:D11)","v":0},{"$f":"OperationeleUitgaven[[#Totals],[Huidige periode]]-SUM(E9:E11)","v":0},{"$f":"OperationeleUitgaven[[#Totals],[Huidige periode als % van verkopen]]-SUM(F9:F11)","v":{"v":0,"d":"0.00%"}},{"$f":"OperationeleUitgaven[[#Totals],[% wijziging t.o.v. vorige periode]]-SUM(G9:G11)","v":{"v":0,"d":"0.00%"}},{"$f":"OperationeleUitgaven[[#Totals],[% wijziging t.o.v. begroting]]-SUM(H9:H11)","v":{"v":0,"d":"0.00%"}}]
[null,"Overige inkomsten  [S]",{"$f":"Inkomsten[[#Totals],[Vorige periode]]","v":0},{"$f":"Inkomsten[[#Totals],[Begroting]]","v":0},{"$f":"Inkomsten[[#Totals],[Huidige periode]]","v":0},{"$f":"Inkomsten[[#Totals],[Huidige periode als % van verkopen]]","v":{"v":0,"d":"0.00%"}},{"$f":"Inkomsten[[#Totals],[% wijziging t.o.v. vorige periode]]","v":{"v":0,"d":"0.00%"}},{"$f":"Inkomsten[[#Totals],[% wijziging t.o.v. begroting]]","v":{"v":0,"d":"0.00%"}}]
[null,"Totale belastingen  [T]",{"$f":"Belastingen[[#Totals],[Vorige periode]]","v":0},{"$f":"Belastingen[[#Totals],[Begroting]]","v":0},{"$f":"Belastingen[[#Totals],[Huidige periode]]","v":0},{"$f":"Belastingen[[#Totals],[Huidige periode als % van verkopen]]","v":{"v":0,"d":"0.00%"}},{"$f":"Belastingen[[#Totals],[% wijziging t.o.v. vorige periode]]","v":{"v":0,"d":"0.00%"}},{"$f":"Belastingen[[#Totals],[% wijziging t.o.v. begroting]]","v":{"v":0,"d":"0.00%"}}]
[]
[null,"Brutowinst  [L=J-K]",{"$f":"IFERROR(C7-C8,\"-\")","v":0},{"$f":"IFERROR(D7-D8,\"-\")","v":0},{"$f":"IFERROR(Totale_omzet-Totale_kosten_verkoop,\"-\")","v":0},{"$f":"IFERROR(IF(Totale_omzet=0,\"0,00%\",Totale_brutowinst/Totale_omzet),\"-\")","v":"0,00%"},{"$f":"IFERROR(IF(C16=Totale_brutowinst,0,IF(Totale_brutowinst>C16,ABS((Totale_brutowinst/C16)-1),IF(AND(Totale_brutowinst<C16,C16<0),-((Totale_brutowinst/C16)-1),(Totale_brutowinst/C16)-1))),\"-\")","v":{"v":0,"d":"0.00%"}},{"$f":"IFERROR(IF(D16=Totale_brutowinst,0,IF(Totale_brutowinst>D16,ABS((Totale_brutowinst/D16)-1),IF(AND(Totale_brutowinst<D16,D16<0),-((Totale_brutowinst/D16)-1),(Totale_brutowinst/D16)-1))),\"-\")","v":{"v":0,"d":"0.00%"}}]
[null,"Totale operationele uitgaven  [Q=M+N+O+P]",{"$f":"IFERROR(C9+C10+C11+C12,\"-\")","v":0},{"$f":"IFERROR(D9+D10+D11+D12,\"-\")","v":0},{"$f":"IFERROR(Totaal_verkoop_en_marketing+Totaal_onderzoek_en_ontwikkeling+Totaal_algemeen_en_administratief+Totale_overige_uitgaven,\"-\")","v":0},{"$f":"IFERROR(IF(Totale_omzet=0,\"0,00%\",Totale_operationele_uitgaven/Totale_omzet),\"-\")","v":"0,00%"},{"$f":"IFERROR(IF(C17=Totale_operationele_uitgaven,0,IF(Totale_operationele_uitgaven>C17,ABS((Totale_operationele_uitgaven/C17)-1),IF(AND(Totale_operationele_uitgaven<C17,C17<0),-((Totale_operationele_uitgaven/C17)-1),(Totale_operationele_uitgaven/C17)-1))),\"-\")","v":{"v":0,"d":"0.00%"}},{"$f":"IFERROR(IF(D17=Totale_operationele_uitgaven,0,IF(Totale_operationele_uitgaven>D17,ABS((Totale_operationele_uitgaven/D17)-1),IF(AND(Totale_operationele_uitgaven<D17,D17<0),-((Totale_operationele_uitgaven/D17)-1),(Totale_operationele_uitgaven/D17)-1))),\"-\")","v":{"v":0,"d":"0.00%"}}]
[null,"Inkomsten uit bedrijfsactiviteiten  [R=L-Q]",{"$f":"IFERROR(C16-C17,\"-\")","v":0},{"$f":"IFERROR(D16-D17,\"-\")","v":0},{"$f":"IFERROR(Totale_brutowinst-Totale_operationele_uitgaven,\"-\")","v":0},{"$f":"IFERROR(IF(Totale_omzet=0,\"0,00%\",Totale_inkomsten_operationele_activiteiten/Totale_omzet),\"-\")","v":"0,00%"},{"$f":"IFERROR(IF(C18=Totale_inkomsten_operationele_activiteiten,0,IF(Totale_inkomsten_operationele_activiteiten>C18,ABS((Totale_inkomsten_operationele_activiteiten/C18)-1),IF(AND(Totale_inkomsten_operationele_activiteiten<C18,C18<0),-((Totale_inkomsten_operationele_activiteiten/C18)-1),(Totale_inkomsten_operationele_activiteiten/C18)-1))),\"-\")","v":{"v":0,"d":"0.00%"}},{"$f":"IFERROR(IF(D18=Totale_inkomsten_operationele_activiteiten,0,IF(Totale_inkomsten_operationele_activiteiten>D18,ABS((Totale_inkomsten_operationele_activiteiten/D18)-1),IF(AND(Totale_inkomsten_operationele_activiteiten<D18,D18<0),-((Totale_inkomsten_operationele_activiteiten/D18)-1),(Totale_inkomsten_operationele_activiteiten/D18)-1))),\"-\")","v":{"v":0,"d":"0.00%"}}]
[null,"Nettowinst  [U=R+S-T]",{"$f":"IFERROR(C18+C13-C14,\"-\")","v":0},{"$f":"IFERROR(D18+D13-D14,\"-\")","v":0},{"$f":"Totale_inkomsten_operationele_activiteiten+Totale_overige_inkomsten-Totale_belastingen","v":0},{"$f":"IFERROR(IF(Totale_omzet=0,\"0,00%\",Nettowinst/Totale_omzet),\"-\")","v":"0,00%"},{"$f":"IFERROR(IF(C19=Nettowinst,0,IF(Nettowinst>C19,ABS((Nettowinst/C19)-1),IF(AND(Nettowinst<C19,C19<0),-((Nettowinst/C19)-1),(Nettowinst/C19)-1))),\"-\")","v":{"v":0,"d":"0.00%"}},{"$f":"IFERROR(IF(D19=Nettowinst,0,IF(Nettowinst>D19,ABS((Nettowinst/D19)-1),IF(AND(Nettowinst<D19,D19<0),-((Nettowinst/D19)-1),(Nettowinst/D19)-1))),\"-\")","v":{"v":0,"d":"0.00%"}}]

{"sheet":"Verkopen","index":1,"n_rows":13,"n_cols":9,"rows_kept":13,"merged":[[0,7,2,8]]}
[null,{"$f":"Werkmap_titel","v":"Winst-en verliesrekening"}]
[null,{"$f":"Bedrijfsnaam","v":"Bedrijfsnaam"},"Vermeld in duizenden"]
[null,"Omzet",{"$f":"IFERROR(Omzet,\"-\")","v":0}]
[null,"Type inkomsten","Beschrijving","Vorige periode","Begroting","Huidige periode","Huidige periode als % van verkopen","% wijziging t.o.v. vorige periode","% wijziging t.o.v. begroting"]
[null,"Omzet","Product/dienst 1",{"$nulls":3},{"$f":"IFERROR(IF(Omzet_1[[#Totals],[Huidige periode]]=0,\"-\",Omzet_1[Huidige periode]/Omzet),\"-\")","v":"-"},{"$f":"IFERROR(IF(Omzet_1[[#This Row],[Vorige periode]]=Omzet_1[[#This Row],[Huidige periode]],0,IF(Omzet_1[[#This Row],[Huidige periode]]>Omzet_1[[#This Row],[Vorige periode]],ABS((Omzet_1[[#This Row],[Huidige periode]]/Omzet_1[[#This Row],[Vorige periode]])-1),IF(AND(Omzet_1[[#This Row],[Huidige periode]]<Omzet_1[[#This Row],[Vorige periode]],Omzet_1[[#This Row],[Vorige periode]]<0),-((Omzet_1[[#This Row],[Huidige periode]]/Omzet_1[[#This Row],[Vorige periode]])-1),(Omzet_1[[#This Row],[Huidige periode]]/Omzet_1[[#This Row],[Vorige periode]])-1))),\"-\")","v":{"v":0,"d":"0.00%"}},{"$f":"IFERROR(IF(Omzet_1[[#This Row],[Begroting]]=Omzet_1[[#This Row],[Huidige periode]],0,IF(Omzet_1[[#This Row],[Huidige periode]]>Omzet_1[[#This Row],[Begroting]],ABS((Omzet_1[[#This Row],[Huidige periode]]/Omzet_1[[#This Row],[Begroting]])-1),IF(AND(Omzet_1[[#This Row],[Huidige periode]]<Omzet_1[[#This Row],[Begroting]],Omzet_1[[#This Row],[Begroting]]<0),-((Omzet_1[[#This Row],[Huidige periode]]/Omzet_1[[#This Row],[Begroting]])-1),(Omzet_1[[#This Row],[Huidige periode]]/Omzet_1[[#This Row],[Begroting]])-1))),\"-\")","v":{"v":0,"d":"0.00%"}}]
[null,"Omzet","Product/dienst 2",{"$nulls":3},{"$f":"IFERROR(IF(Omzet_1[[#Totals],[Huidige periode]]=0,\"-\",Omzet_1[Huidige periode]/Omzet),\"-\")","v":"-"},{"$f":"IFERROR(IF(Omzet_1[[#This Row],[Vorige periode]]=Omzet_1[[#This Row],[Huidige periode]],0,IF(Omzet_1[[#This Row],[Huidige periode]]>Omzet_1[[#This Row],[Vorige periode]],ABS((Omzet_1[[#This Row],[Huidige periode]]/Omzet_1[[#This Row],[Vorige periode]])-1),IF(AND(Omzet_1[[#This Row],[Huidige periode]]<Omzet_1[[#This Row],[Vorige periode]],Omzet_1[[#This Row],[Vorige periode]]<0),-((Omzet_1[[#This Row],[Huidige periode]]/Omzet_1[[#This Row],[Vorige periode]])-1),(Omzet_1[[#This Row],[Huidige periode]]/Omzet_1[[#This Row],[Vorige periode]])-1))),\"-\")","v":{"v":0,"d":"0.00%"}},{"$f":"IFERROR(IF(Omzet_1[[#This Row],[Begroting]]=Omzet_1[[#This Row],[Huidige periode]],0,IF(Omzet_1[[#This Row],[Huidige periode]]>Omzet_1[[#This Row],[Begroting]],ABS((Omzet_1[[#This Row],[Huidige periode]]/Omzet_1[[#This Row],[Begroting]])-1),IF(AND(Omzet_1[[#This Row],[Huidige periode]]<Omzet_1[[#This Row],[Begroting]],Omzet_1[[#This Row],[Begroting]]<0),-((Omzet_1[[#This Row],[Huidige periode]]/Omzet_1[[#This Row],[Begroting]])-1),(Omzet_1[[#This Row],[Huidige periode]]/Omzet_1[[#This Row],[Begroting]])-1))),\"-\")","v":{"v":0,"d":"0.00%"}}]
[null,"Omzet","Product/dienst 3",{"$nulls":3},{"$f":"IFERROR(IF(Omzet_1[[#Totals],[Huidige periode]]=0,\"-\",Omzet_1[Huidige periode]/Omzet),\"-\")","v":"-"},{"$f":"IFERROR(IF(Omzet_1[[#This Row],[Vorige periode]]=Omzet_1[[#This Row],[Huidige periode]],0,IF(Omzet_1[[#This Row],[Huidige periode]]>Omzet_1[[#This Row],[Vorige periode]],ABS((Omzet_1[[#This Row],[Huidige periode]]/Omzet_1[[#This Row],[Vorige periode]])-1),IF(AND(Omzet_1[[#This Row],[Huidige periode]]<Omzet_1[[#This Row],[Vorige periode]],Omzet_1[[#This Row],[Vorige periode]]<0),-((Omzet_1[[#This Row],[Huidige periode]]/Omzet_1[[#This Row],[Vorige periode]])-1),(Omzet_1[[#This Row],[Huidige periode]]/Omzet_1[[#This Row],[Vorige periode]])-1))),\"-\")","v":{"v":0,"d":"0.00%"}},{"$f":"IFERROR(IF(Omzet_1[[#This Row],[Begroting]]=Omzet_1[[#This Row],[Huidige periode]],0,IF(Omzet_1[[#This Row],[Huidige periode]]>Omzet_1[[#This Row],[Begroting]],ABS((Omzet_1[[#This Row],[Huidige periode]]/Omzet_1[[#This Row],[Begroting]])-1),IF(AND(Omzet_1[[#This Row],[Huidige periode]]<Omzet_1[[#This Row],[Begroting]],Omzet_1[[#This Row],[Begroting]]<0),-((Omzet_1[[#This Row],[Huidige periode]]/Omzet_1[[#This Row],[Begroting]])-1),(Omzet_1[[#This Row],[Huidige periode]]/Omzet_1[[#This Row],[Begroting]])-1))),\"-\")","v":{"v":0,"d":"0.00%"}}]
[null,"Omzet","Product/dienst 4",{"$nulls":3},{"$f":"IFERROR(IF(Omzet_1[[#Totals],[Huidige periode]]=0,\"-\",Omzet_1[Huidige periode]/Omzet),\"-\")","v":"-"},{"$f":"IFERROR(IF(Omzet_1[[#This Row],[Vorige periode]]=Omzet_1[[#This Row],[Huidige periode]],0,IF(Omzet_1[[#This Row],[Huidige periode]]>Omzet_1[[#This Row],[Vorige periode]],ABS((Omzet_1[[#This Row],[Huidige periode]]/Omzet_1[[#This Row],[Vorige periode]])-1),IF(AND(Omzet_1[[#This Row],[Huidige periode]]<Omzet_1[[#This Row],[Vorige periode]],Omzet_1[[#This Row],[Vorige periode]]<0),-((Omzet_1[[#This Row],[Huidige periode]]/Omzet_1[[#This Row],[Vorige periode]])-1),(Omzet_1[[#This Row],[Huidige periode]]/Omzet_1[[#This Row],[Vorige periode]])-1))),\"-\")","v":{"v":0,"d":"0.00%"}},{"$f":"IFERROR(IF(Omzet_1[[#This Row],[Begroting]]=Omzet_1[[#This Row],[Huidige periode]],0,IF(Omzet_1[[#This Row],[Huidige periode]]>Omzet_1[[#This Row],[Begroting]],ABS((Omzet_1[[#This Row],[Huidige periode]]/Omzet_1[[#This Row],[Begroting]])-1),IF(AND(Omzet_1[[#This Row],[Huidige periode]]<Omzet_1[[#This Row],[Begroting]],Omzet_1[[#This Row],[Begroting]]<0),-((Omzet_1[[#This Row],[Huidige periode]]/Omzet_1[[#This Row],[Begroting]])-1),(Omzet_1[[#This Row],[Huidige periode]]/Omzet_1[[#This Row],[Begroting]])-1))),\"-\")","v":{"v":0,"d":"0.00%"}}]
[null,"Verkoopkosten","Product/dienst 1",{"$nulls":3},{"$f":"IFERROR(IF(Omzet_1[[#Totals],[Huidige periode]]=0,\"-\",Omzet_1[Huidige periode]/Omzet),\"-\")","v":"-"},{"$f":"IFERROR(IF(Omzet_1[[#This Row],[Vorige periode]]=Omzet_1[[#This Row],[Huidige periode]],0,IF(Omzet_1[[#This Row],[Huidige periode]]>Omzet_1[[#This Row],[Vorige periode]],ABS((Omzet_1[[#This Row],[Huidige periode]]/Omzet_1[[#This Row],[Vorige periode]])-1),IF(AND(Omzet_1[[#This Row],[Huidige periode]]<Omzet_1[[#This Row],[Vorige periode]],Omzet_1[[#This Row],[Vorige periode]]<0),-((Omzet_1[[#This Row],[Huidige periode]]/Omzet_1[[#This Row],[Vorige periode]])-1),(Omzet_1[[#This Row],[Huidige periode]]/Omzet_1[[#This Row],[Vorige periode]])-1))),\"-\")","v":{"v":0,"d":"0.00%"}},{"$f":"IFERROR(IF(Omzet_1[[#This Row],[Begroting]]=Omzet_1[[#This Row],[Huidige periode]],0,IF(Omzet_1[[#This Row],[Huidige periode]]>Omzet_1[[#This Row],[Begroting]],ABS((Omzet_1[[#This Row],[Huidige periode]]/Omzet_1[[#This Row],[Begroting]])-1),IF(AND(Omzet_1[[#This Row],[Huidige periode]]<Omzet_1[[#This Row],[Begroting]],Omzet_1[[#This Row],[Begroting]]<0),-((Omzet_1[[#This Row],[Huidige periode]]/Omzet_1[[#This Row],[Begroting]])-1),(Omzet_1[[#This Row],[Huidige periode]]/Omzet_1[[#This Row],[Begroting]])-1))),\"-\")","v":{"v":0,"d":"0.00%"}}]
[null,"Verkoopkosten","Product/dienst 2",{"$nulls":3},{"$f":"IFERROR(IF(Omzet_1[[#Totals],[Huidige periode]]=0,\"-\",Omzet_1[Huidige periode]/Omzet),\"-\")","v":"-"},{"$f":"IFERROR(IF(Omzet_1[[#This Row],[Vorige periode]]=Omzet_1[[#This Row],[Huidige periode]],0,IF(Omzet_1[[#This Row],[Huidige periode]]>Omzet_1[[#This Row],[Vorige periode]],ABS((Omzet_1[[#This Row],[Huidige periode]]/Omzet_1[[#This Row],[Vorige periode]])-1),IF(AND(Omzet_1[[#This Row],[Huidige periode]]<Omzet_1[[#This Row],[Vorige periode]],Omzet_1[[#This Row],[Vorige periode]]<0),-((Omzet_1[[#This Row],[Huidige periode]]/Omzet_1[[#This Row],[Vorige periode]])-1),(Omzet_1[[#This Row],[Huidige periode]]/Omzet_1[[#This Row],[Vorige periode]])-1))),\"-\")","v":{"v":0,"d":"0.00%"}},{"$f":"IFERROR(IF(Omzet_1[[#This Row],[Begroting]]=Omzet_1[[#This Row],[Huidige periode]],0,IF(Omzet_1[[#This Row],[Huidige periode]]>Omzet_1[[#This Row],[Begroting]],ABS((Omzet_1[[#This Row],[Huidige periode]]/Omzet_1[[#This Row],[Begroting]])-1),IF(AND(Omzet_1[[#This Row],[Huidige periode]]<Omzet_1[[#This Row],[Begroting]],Omzet_1[[#This Row],[Begroting]]<0),-((Omzet_1[[#This Row],[Huidige periode]]/Omzet_1[[#This Row],[Begroting]])-1),(Omzet_1[[#This Row],[Huidige periode]]/Omzet_1[[#This Row],[Begroting]])-1))),\"-\")","v":{"v":0,"d":"0.00%"}}]
[null,"Verkoopkosten","Product/dienst 3",{"$nulls":3},{"$f":"IFERROR(IF(Omzet_1[[#Totals],[Huidige periode]]=0,\"-\",Omzet_1[Huidige periode]/Omzet),\"-\")","v":"-"},{"$f":"IFERROR(IF(Omzet_1[[#This Row],[Vorige periode]]=Omzet_1[[#This Row],[Huidige periode]],0,IF(Omzet_1[[#This Row],[Huidige periode]]>Omzet_1[[#This Row],[Vorige periode]],ABS((Omzet_1[[#This Row],[Huidige periode]]/Omzet_1[[#This Row],[Vorige periode]])-1),IF(AND(Omzet_1[[#This Row],[Huidige periode]]<Omzet_1[[#This Row],[Vorige periode]],Omzet_1[[#This Row],[Vorige periode]]<0),-((Omzet_1[[#This Row],[Huidige periode]]/Omzet_1[[#This Row],[Vorige periode]])-1),(Omzet_1[[#This Row],[Huidige periode]]/Omzet_1[[#This Row],[Vorige periode]])-1))),\"-\")","v":{"v":0,"d":"0.00%"}},{"$f":"IFERROR(IF(Omzet_1[[#This Row],[Begroting]]=Omzet_1[[#This Row],[Huidige periode]],0,IF(Omzet_1[[#This Row],[Huidige periode]]>Omzet_1[[#This Row],[Begroting]],ABS((Omzet_1[[#This Row],[Huidige periode]]/Omzet_1[[#This Row],[Begroting]])-1),IF(AND(Omzet_1[[#This Row],[Huidige periode]]<Omzet_1[[#This Row],[Begroting]],Omzet_1[[#This Row],[Begroting]]<0),-((Omzet_1[[#This Row],[Huidige periode]]/Omzet_1[[#This Row],[Begroting]])-1),(Omzet_1[[#This Row],[Huidige periode]]/Omzet_1[[#This Row],[Begroting]])-1))),\"-\")","v":{"v":0,"d":"0.00%"}}]
[null,"Verkoopkosten","Product/dienst 4",{"$nulls":3},{"$f":"IFERROR(IF(Omzet_1[[#Totals],[Huidige periode]]=0,\"-\",Omzet_1[Huidige periode]/Omzet),\"-\")","v":"-"},{"$f":"IFERROR(IF(Omzet_1[[#This Row],[Vorige periode]]=Omzet_1[[#This Row],[Huidige periode]],0,IF(Omzet_1[[#This Row],[Huidige periode]]>Omzet_1[[#This Row],[Vorige periode]],ABS((Omzet_1[[#This Row],[Huidige periode]]/Omzet_1[[#This Row],[Vorige periode]])-1),IF(AND(Omzet_1[[#This Row],[Huidige periode]]<Omzet_1[[#This Row],[Vorige periode]],Omzet_1[[#This Row],[Vorige periode]]<0),-((Omzet_1[[#This Row],[Huidige periode]]/Omzet_1[[#This Row],[Vorige periode]])-1),(Omzet_1[[#This Row],[Huidige periode]]/Omzet_1[[#This Row],[Vorige periode]])-1))),\"-\")","v":{"v":0,"d":"0.00%"}},{"$f":"IFERROR(IF(Omzet_1[[#This Row],[Begroting]]=Omzet_1[[#This Row],[Huidige periode]],0,IF(Omzet_1[[#This Row],[Huidige periode]]>Omzet_1[[#This Row],[Begroting]],ABS((Omzet_1[[#This Row],[Huidige periode]]/Omzet_1[[#This Row],[Begroting]])-1),IF(AND(Omzet_1[[#This Row],[Huidige periode]]<Omzet_1[[#This Row],[Begroting]],Omzet_1[[#This Row],[Begroting]]<0),-((Omzet_1[[#This Row],[Huidige periode]]/Omzet_1[[#This Row],[Begroting]])-1),(Omzet_1[[#This Row],[Huidige periode]]/Omzet_1[[#This Row],[Begroting]])-1))),\"-\")","v":{"v":0,"d":"0.00%"}}]
[null,"Totale omzet",null,{"$f":"SUBTOTAL(109,Omzet_1[Vorige periode])","v":0},{"$f":"SUBTOTAL(109,Omzet_1[Begroting])","v":0},{"$f":"SUBTOTAL(109,Omzet_1[Huidige periode])","v":0},{"$f":"SUBTOTAL(109,Omzet_1[Huidige periode als % van verkopen])","v":{"v":0,"d":"0.00%"}},{"$f":"SUBTOTAL(109,Omzet_1[% wijziging t.o.v. vorige periode])","v":{"v":0,"d":"0.00%"}},{"$f":"SUBTOTAL(109,Omzet_1[% wijziging t.o.v. begroting])","v":{"v":0,"d":"0.00%"}}]

{"sheet":"Inkomsten","index":2,"n_rows":7,"n_cols":9,"rows_kept":7,"merged":[[0,7,2,8]]}
[null,{"$f":"Werkmap_titel","v":"Winst-en verliesrekening"}]
[null,{"$f":"Bedrijfsnaam","v":"Bedrijfsnaam"},"Vermeld in duizenden"]
[null,"Inkomsten",{"$f":"IFERROR(Inkomsten[[#Totals],[Huidige periode]],\"-\")","v":0}]
[null,"Type inkomsten","Beschrijving","Vorige periode","Begroting","Huidige periode","Huidige periode als % van verkopen","% wijziging t.o.v. vorige periode","% wijziging t.o.v. begroting"]
[null,"Inkomsten","Andere inkomsten",{"$nulls":3},{"$f":"IFERROR(IF(Omzet=0,\"-\",Inkomsten[Huidige periode]/Omzet),\"-\")","v":"-"},{"$f":"IFERROR(IF(Inkomsten[[#This Row],[Vorige periode]]=Inkomsten[[#This Row],[Huidige periode]],0,IF(Inkomsten[[#This Row],[Huidige periode]]>Inkomsten[[#This Row],[Vorige periode]],ABS((Inkomsten[[#This Row],[Huidige periode]]/Inkomsten[[#This Row],[Vorige periode]])-1),IF(AND(Inkomsten[[#This Row],[Huidige periode]]<Inkomsten[[#This Row],[Vorige periode]],Inkomsten[[#This Row],[Vorige periode]]<0),-((Inkomsten[[#This Row],[Huidige periode]]/Inkomsten[[#This Row],[Vorige periode]])-1),(Inkomsten[[#This Row],[Huidige periode]]/Inkomsten[[#This Row],[Vorige periode]])-1))),\"-\")","v":{"v":0,"d":"0.00%"}},{"$f":"IFERROR(IF(Inkomsten[[#This Row],[Begroting]]=Inkomsten[[#This Row],[Huidige periode]],0,IF(Inkomsten[[#This Row],[Huidige periode]]>Inkomsten[[#This Row],[Begroting]],ABS((Inkomsten[[#This Row],[Huidige periode]]/Inkomsten[[#This Row],[Begroting]])-1),IF(AND(Inkomsten[[#This Row],[Huidige periode]]<Inkomsten[[#This Row],[Begroting]],Inkomsten[[#This Row],[Begroting]]<0),-((Inkomsten[[#This Row],[Huidige periode]]/Inkomsten[[#This Row],[Begroting]])-1),(Inkomsten[[#This Row],[Huidige periode]]/Inkomsten[[#This Row],[Begroting]])-1))),\"-\")","v":{"v":0,"d":"0.00%"}}]
[{"$nulls":6},{"$f":"IFERROR(IF(Omzet=0,\"-\",Inkomsten[Huidige periode]/Omzet),\"-\")","v":"-"},{"$f":"IFERROR(IF(Inkomsten[[#This Row],[Vorige periode]]=Inkomsten[[#This Row],[Huidige periode]],0,IF(Inkomsten[[#This Row],[Huidige periode]]>Inkomsten[[#This Row],[Vorige periode]],ABS((Inkomsten[[#This Row],[Huidige periode]]/Inkomsten[[#This Row],[Vorige periode]])-1),IF(AND(Inkomsten[[#This Row],[Huidige periode]]<Inkomsten[[#This Row],[Vorige periode]],Inkomsten[[#This Row],[Vorige periode]]<0),-((Inkomsten[[#This Row],[Huidige periode]]/Inkomsten[[#This Row],[Vorige periode]])-1),(Inkomsten[[#This Row],[Huidige periode]]/Inkomsten[[#This Row],[Vorige periode]])-1))),\"-\")","v":{"v":0,"d":"0.00%"}},{"$f":"IFERROR(IF(Inkomsten[[#This Row],[Begroting]]=Inkomsten[[#This Row],[Huidige periode]],0,IF(Inkomsten[[#This Row],[Huidige periode]]>Inkomsten[[#This Row],[Begroting]],ABS((Inkomsten[[#This Row],[Huidige periode]]/Inkomsten[[#This Row],[Begroting]])-1),IF(AND(Inkomsten[[#This Row],[Huidige periode]]<Inkomsten[[#This Row],[Begroting]],Inkomsten[[#This Row],[Begroting]]<0),-((Inkomsten[[#This Row],[Huidige periode]]/Inkomsten[[#This Row],[Begroting]])-1),(Inkomsten[[#This Row],[Huidige periode]]/Inkomsten[[#This Row],[Begroting]])-1))),\"-\")","v":{"v":0,"d":"0.00%"}}]
[null,"Totale inkomsten uit verkoop",null,{"$f":"SUBTOTAL(109,Inkomsten[Vorige periode])","v":0},{"$f":"SUBTOTAL(109,Inkomsten[Begroting])","v":0},{"$f":"SUBTOTAL(109,Inkomsten[Huidige periode])","v":0},{"$f":"SUBTOTAL(109,Inkomsten[Huidige periode als % van verkopen])","v":{"v":0,"d":"0.00%"}},{"$f":"SUBTOTAL(109,Inkomsten[% wijziging t.o.v. vorige periode])","v":{"v":0,"d":"0.00%"}},{"$f":"SUBTOTAL(109,Inkomsten[% wijziging t.o.v. begroting])","v":{"v":0,"d":"0.00%"}}]

{"sheet":"Uitgaven","index":3,"n_rows":25,"n_cols":9,"rows_kept":25,"merged":[[0,7,2,8]]}
[null,{"$f":"Werkmap_titel","v":"Winst-en verliesrekening"}]
[null,{"$f":"Bedrijfsnaam","v":"Bedrijfsnaam"},"Vermeld in duizenden"]
[null,"Operationele kosten",{"$f":"IFERROR(OperationeleUitgaven[[#Totals],[Huidige periode]],\"-\")","v":0}]
[null,"Onkostentype","Beschrijving","Vorige periode","Begroting","Huidige periode","Huidige periode als % van verkopen","% wijziging t.o.v. vorige periode","% wijziging t.o.v. begroting"]
[null,"Verkoop en marketing","Reclame",{"$nulls":3},{"$f":"IFERROR(IF(Omzet=0,\"-\",OperationeleUitgaven[Huidige periode]/Omzet),\"-\")","v":"-"},{"$f":"IFERROR(IF(OperationeleUitgaven[[#This Row],[Vorige periode]]=OperationeleUitgaven[[#This Row],[Huidige periode]],0,IF(OperationeleUitgaven[[#This Row],[Huidige periode]]>OperationeleUitgaven[[#This Row],[Vorige periode]],ABS((OperationeleUitgaven[[#This Row],[Huidige periode]]/OperationeleUitgaven[[#This Row],[Vorige periode]])-1),IF(AND(OperationeleUitgaven[[#This Row],[Huidige periode]]<OperationeleUitgaven[[#This Row],[Vorige periode]],OperationeleUitgaven[[#This Row],[Vorige periode]]<0),-((OperationeleUitgaven[[#This Row],[Huidige periode]]/OperationeleUitgaven[[#This Row],[Vorige periode]])-1),(OperationeleUitgaven[[#This Row],[Huidige periode]]/OperationeleUitgaven[[#This Row],[Vorige periode]])-1))),\"-\")","v":{"v":0,"d":"0.00%"}},{"$f":"IFERROR(IF(OperationeleUitgaven[[#This Row],[Begroting]]=OperationeleUitgaven[[#This Row],[Huidige periode]],0,IF(OperationeleUitgaven[[#This Row],[Huidige periode]]>OperationeleUitgaven[[#This Row],[Begroting]],ABS((OperationeleUitgaven[[#This Row],[Huidige periode]]/OperationeleUitgaven[[#This Row],[Begroting]])-1),IF(AND(OperationeleUitgaven[[#This Row],[Huidige periode]]<OperationeleUitgaven[[#This Row],[Begroting]],OperationeleUitgaven[[#This Row],[Begroting]]<0),-((OperationeleUitgaven[[#This Row],[Huidige periode]]/OperationeleUitgaven[[#This Row],[Begroting]])-1),(OperationeleUitgaven[[#This Row],[Huidige periode]]/OperationeleUitgaven[[#This Row],[Begroting]])-1))),\"-\")","v":{"v":0,"d":"0.00%"}}]
[null,"Verkoop en marketing","Directe marketing",{"$nulls":3},{"$f":"IFERROR(IF(Omzet=0,\"-\",OperationeleUitgaven[Huidige periode]/Omzet),\"-\")","v":"-"},{"$f":"IFERROR(IF(OperationeleUitgaven[[#This Row],[Vorige periode]]=OperationeleUitgaven[[#This Row],[Huidige periode]],0,IF(OperationeleUitgaven[[#This Row],[Huidige periode]]>OperationeleUitgaven[[#This Row],[Vorige periode]],ABS((OperationeleUitgaven[[#This Row],[Huidige periode]]/OperationeleUitgaven[[#This Row],[Vorige periode]])-1),IF(AND(OperationeleUitgaven[[#This Row],[Huidige periode]]<OperationeleUitgaven[[#This Row],[Vorige periode]],OperationeleUitgaven[[#This Row],[Vorige periode]]<0),-((OperationeleUitgaven[[#This Row],[Huidige periode]]/OperationeleUitgaven[[#This Row],[Vorige periode]])-1),(OperationeleUitgaven[[#This Row],[Huidige periode]]/OperationeleUitgaven[[#This Row],[Vorige periode]])-1))),\"-\")","v":{"v":0,"d":"0.00%"}},{"$f":"IFERROR(IF(OperationeleUitgaven[[#This Row],[Begroting]]=OperationeleUitgaven[[#This Row],[Huidige periode]],0,IF(OperationeleUitgaven[[#This Row],[Huidige periode]]>OperationeleUitgaven[[#This Row],[Begroting]],ABS((OperationeleUitgaven[[#This Row],[Huidige periode]]/OperationeleUitgaven[[#This Row],[Begroting]])-1),IF(AND(OperationeleUitgaven[[#This Row],[Huidige periode]]<OperationeleUitgaven[[#This Row],[Begroting]],OperationeleUitgaven[[#This Row],[Begroting]]<0),-((OperationeleUitgaven[[#This Row],[Huidige periode]]/OperationeleUitgaven[[#This Row],[Begroting]])-1),(OperationeleUitgaven[[#This Row],[Huidige periode]]/OperationeleUitgaven[[#This Row],[Begroting]])-1))),\"-\")","v":{"v":0,"d":"0.00%"}}]
[null,"Verkoop en marketing","Overige uitgaven (specificeren)",{"$nulls":3},{"$f":"IFERROR(IF(Omzet=0,\"-\",OperationeleUitgaven[Huidige periode]/Omzet),\"-\")","v":"-"},{"$f":"IFERROR(IF(OperationeleUitgaven[[#This Row],[Vorige periode]]=OperationeleUitgaven[[#This Row],[Huidige periode]],0,IF(OperationeleUitgaven[[#This Row],[Huidige periode]]>OperationeleUitgaven[[#This Row],[Vorige periode]],ABS((OperationeleUitgaven[[#This Row],[Huidige periode]]/OperationeleUitgaven[[#This Row],[Vorige periode]])-1),IF(AND(OperationeleUitgaven[[#This Row],[Huidige periode]]<OperationeleUitgaven[[#This Row],[Vorige periode]],OperationeleUitgaven[[#This Row],[Vorige periode]]<0),-((OperationeleUitgaven[[#This Row],[Huidige periode]]/OperationeleUitgaven[[#This Row],[Vorige periode]])-1),(OperationeleUitgaven[[#This Row],[Huidige periode]]/OperationeleUitgaven[[#This Row],[Vorige periode]])-1))),\"-\")","v":{"v":0,"d":"0.00%"}},{"$f":"IFERROR(IF(OperationeleUitgaven[[#This Row],[Begroting]]=OperationeleUitgaven[[#This Row],[Huidige periode]],0,IF(OperationeleUitgaven[[#This Row],[Huidige periode]]>OperationeleUitgaven[[#This Row],[Begroting]],ABS((OperationeleUitgaven[[#This Row],[Huidige periode]]/OperationeleUitgaven[[#This Row],[Begroting]])-1),IF(AND(OperationeleUitgaven[[#This Row],[Huidige periode]]<OperationeleUitgaven[[#This Row],[Begroting]],OperationeleUitgaven[[#This Row],[Begroting]]<0),-((OperationeleUitgaven[[#This Row],[Huidige periode]]/OperationeleUitgaven[[#This Row],[Begroting]])-1),(OperationeleUitgaven[[#This Row],[Huidige periode]]/OperationeleUitgaven[[#This Row],[Begroting]])-1))),\"-\")","v":{"v":0,"d":"0.00%"}}]
[null,"Verkoop en marketing","Overige uitgaven (specificeren)",{"$nulls":3},{"$f":"IFERROR(IF(Omzet=0,\"-\",OperationeleUitgaven[Huidige periode]/Omzet),\"-\")","v":"-"},{"$f":"IFERROR(IF(OperationeleUitgaven[[#This Row],[Vorige periode]]=OperationeleUitgaven[[#This Row],[Huidige periode]],0,IF(OperationeleUitgaven[[#This Row],[Huidige periode]]>OperationeleUitgaven[[#This Row],[Vorige periode]],ABS((OperationeleUitgaven[[#This Row],[Huidige periode]]/OperationeleUitgaven[[#This Row],[Vorige periode]])-1),IF(AND(OperationeleUitgaven[[#This Row],[Huidige periode]]<OperationeleUitgaven[[#This Row],[Vorige periode]],OperationeleUitgaven[[#This Row],[Vorige periode]]<0),-((OperationeleUitgaven[[#This Row],[Huidige periode]]/OperationeleUitgaven[[#This Row],[Vorige periode]])-1),(OperationeleUitgaven[[#This Row],[Huidige periode]]/OperationeleUitgaven[[#This Row],[Vorige periode]])-1))),\"-\")","v":{"v":0,"d":"0.00%"}},{"$f":"IFERROR(IF(OperationeleUitgaven[[#This Row],[Begroting]]=OperationeleUitgaven[[#This Row],[Huidige periode]],0,IF(OperationeleUitgaven[[#This Row],[Huidige periode]]>OperationeleUitgaven[[#This Row],[Begroting]],ABS((OperationeleUitgaven[[#This Row],[Huidige periode]]/OperationeleUitgaven[[#This Row],[Begroting]])-1),IF(AND(OperationeleUitgaven[[#This Row],[Huidige periode]]<OperationeleUitgaven[[#This Row],[Begroting]],OperationeleUitgaven[[#This Row],[Begroting]]<0),-((OperationeleUitgaven[[#This Row],[Huidige periode]]/OperationeleUitgaven[[#This Row],[Begroting]])-1),(OperationeleUitgaven[[#This Row],[Huidige periode]]/OperationeleUitgaven[[#This Row],[Begroting]])-1))),\"-\")","v":{"v":0,"d":"0.00%"}}]
[null,"Onderzoek en ontwikkeling","Technologielicenties",{"$nulls":3},{"$f":"IFERROR(IF(Omzet=0,\"-\",OperationeleUitgaven[Huidige periode]/Omzet),\"-\")","v":"-"},{"$f":"IFERROR(IF(OperationeleUitgaven[[#This Row],[Vorige periode]]=OperationeleUitgaven[[#This Row],[Huidige periode]],0,IF(OperationeleUitgaven[[#This Row],[Huidige periode]]>OperationeleUitgaven[[#This Row],[Vorige periode]],ABS((OperationeleUitgaven[[#This Row],[Huidige periode]]/OperationeleUitgaven[[#This Row],[Vorige periode]])-1),IF(AND(OperationeleUitgaven[[#This Row],[Huidige periode]]<OperationeleUitgaven[[#This Row],[Vorige periode]],OperationeleUitgaven[[#This Row],[Vorige periode]]<0),-((OperationeleUitgaven[[#This Row],[Huidige periode]]/OperationeleUitgaven[[#This Row],[Vorige periode]])-1),(OperationeleUitgaven[[#This Row],[Huidige periode]]/OperationeleUitgaven[[#This Row],[Vorige periode]])-1))),\"-\")","v":{"v":0,"d":"0.00%"}},{"$f":"IFERROR(IF(OperationeleUitgaven[[#This Row],[Begroting]]=OperationeleUitgaven[[#This Row],[Huidige periode]],0,IF(OperationeleUitgaven[[#This Row],[Huidige periode]]>OperationeleUitgaven[[#This Row],[Begroting]],ABS((OperationeleUitgaven[[#This Row],[Huidige periode]]/OperationeleUitgaven[[#This Row],[Begroting]])-1),IF(AND(OperationeleUitgaven[[#This Row],[Huidige periode]]<OperationeleUitgaven[[#This Row],[Begroting]],OperationeleUitgaven[[#This Row],[Begroting]]<0),-((OperationeleUitgaven[[#This Row],[Huidige periode]]/OperationeleUitgaven[[#This Row],[Begroting]])-1),(OperationeleUitgaven[[#This Row],[Huidige periode]]/OperationeleUitgaven[[#This Row],[Begroting]])-1))),\"-\")","v":{"v":0,"d":"0.00%"}}]
[null,"Onderzoek en ontwikkeling","Patenten ",{"$nulls":3},{"$f":"IFERROR(IF(Omzet=0,\"-\",OperationeleUitgaven[Huidige periode]/Omzet),\"-\")","v":"-"},{"$f":"IFERROR(IF(OperationeleUitgaven[[#This Row],[Vorige periode]]=OperationeleUitgaven[[#This Row],[Huidige periode]],0,IF(OperationeleUitgaven[[#This Row],[Huidige periode]]>OperationeleUitgaven[[#This Row],[Vorige periode]],ABS((OperationeleUitgaven[[#This Row],[Huidige periode]]/OperationeleUitgaven[[#This Row],[Vorige periode]])-1),IF(AND(OperationeleUitgaven[[#This Row],[Huidige periode]]<OperationeleUitgaven[[#This Row],[Vorige periode]],OperationeleUitgaven[[#This Row],[Vorige periode]]<0),-((OperationeleUitgaven[[#This Row],[Huidige periode]]/OperationeleUitgaven[[#This Row],[Vorige periode]])-1),(OperationeleUitgaven[[#This Row],[Huidige periode]]/OperationeleUitgaven[[#This Row],[Vorige periode]])-1))),\"-\")","v":{"v":0,"d":"0.00%"}},{"$f":"IFERROR(IF(OperationeleUitgaven[[#This Row],[Begroting]]=OperationeleUitgaven[[#This Row],[Huidige periode]],0,IF(OperationeleUitgaven[[#This Row],[Huidige periode]]>OperationeleUitgaven[[#This Row],[Begroting]],ABS((OperationeleUitgaven[[#This Row],[Huidige periode]]/OperationeleUitgaven[[#This Row],[Begroting]])-1),IF(AND(OperationeleUitgaven[[#This Row],[Huidige periode]]<OperationeleUitgaven[[#This Row],[Begroting]],OperationeleUitgaven[[#This Row],[Begroting]]<0),-((OperationeleUitgaven[[#This Row],[Huidige periode]]/OperationeleUitgaven[[#This Row],[Begroting]])-1),(OperationeleUitgaven[[#This Row],[Huidige periode]]/OperationeleUitgaven[[#This Row],[Begroting]])-1))),\"-\")","v":{"v":0,"d":"0.00%"}}]
[null,"Onderzoek en ontwikkeling","Overige uitgaven (specificeren)",{"$nulls":3},{"$f":"IFERROR(IF(Omzet=0,\"-\",OperationeleUitgaven[Huidige periode]/Omzet),\"-\")","v":"-"},{"$f":"IFERROR(IF(OperationeleUitgaven[[#This Row],[Vorige periode]]=OperationeleUitgaven[[#This Row],[Huidige periode]],0,IF(OperationeleUitgaven[[#This Row],[Huidige periode]]>OperationeleUitgaven[[#This Row],[Vorige periode]],ABS((OperationeleUitgaven[[#This Row],[Huidige periode]]/OperationeleUitgaven[[#This Row],[Vorige periode]])-1),IF(AND(OperationeleUitgaven[[#This Row],[Huidige periode]]<OperationeleUitgaven[[#This Row],[Vorige periode]],OperationeleUitgaven[[#This Row],[Vorige periode]]<0),-((OperationeleUitgaven[[#This Row],[Huidige periode]]/OperationeleUitgaven[[#This Row],[Vorige periode]])-1),(OperationeleUitgaven[[#This Row],[Huidige periode]]/OperationeleUitgaven[[#This Row],[Vorige periode]])-1))),\"-\")","v":{"v":0,"d":"0.00%"}},{"$f":"IFERROR(IF(OperationeleUitgaven[[#This Row],[Begroting]]=OperationeleUitgaven[[#This Row],[Huidige periode]],0,IF(OperationeleUitgaven[[#This Row],[Huidige periode]]>OperationeleUitgaven[[#This Row],[Begroting]],ABS((OperationeleUitgaven[[#This Row],[Huidige periode]]/OperationeleUitgaven[[#This Row],[Begroting]])-1),IF(AND(OperationeleUitgaven[[#This Row],[Huidige periode]]<OperationeleUitgaven[[#This Row],[Begroting]],OperationeleUitgaven[[#This Row],[Begroting]]<0),-((OperationeleUitgaven[[#This Row],[Huidige periode]]/OperationeleUitgaven[[#This Row],[Begroting]])-1),(OperationeleUitgaven[[#This Row],[Huidige periode]]/OperationeleUitgaven[[#This Row],[Begroting]])-1))),\"-\")","v":{"v":0,"d":"0.00%"}}]
[null,"Onderzoek en ontwikkeling","Overige uitgaven (specificeren)",{"$nulls":3},{"$f":"IFERROR(IF(Omzet=0,\"-\",OperationeleUitgaven[Huidige periode]/Omzet),\"-\")","v":"-"},{"$f":"IFERROR(IF(OperationeleUitgaven[[#This Row],[Vorige periode]]=OperationeleUitgaven[[#This Row],[Huidige periode]],0,IF(OperationeleUitgaven[[#This Row],[Huidige periode]]>OperationeleUitgaven[[#This Row],[Vorige periode]],ABS((OperationeleUitgaven[[#This Row],[Huidige periode]]/OperationeleUitgaven[[#This Row],[Vorige periode]])-1),IF(AND(OperationeleUitgaven[[#This Row],[Huidige periode]]<OperationeleUitgaven[[#This Row],[Vorige periode]],OperationeleUitgaven[[#This Row],[Vorige periode]]<0),-((OperationeleUitgaven[[#This Row],[Huidige periode]]/OperationeleUitgaven[[#This Row],[Vorige periode]])-1),(OperationeleUitgaven[[#This Row],[Huidige periode]]/OperationeleUitgaven[[#This Row],[Vorige periode]])-1))),\"-\")","v":{"v":0,"d":"0.00%"}},{"$f":"IFERROR(IF(OperationeleUitgaven[[#This Row],[Begroting]]=OperationeleUitgaven[[#This Row],[Huidige periode]],0,IF(OperationeleUitgaven[[#This Row],[Huidige periode]]>OperationeleUitgaven[[#This Row],[Begroting]],ABS((OperationeleUitgaven[[#This Row],[Huidige periode]]/OperationeleUitgaven[[#This Row],[Begroting]])-1),IF(AND(OperationeleUitgaven[[#This Row],[Huidige periode]]<OperationeleUitgaven[[#This Row],[Begroting]],OperationeleUitgaven[[#This Row],[Begroting]]<0),-((OperationeleUitgaven[[#This Row],[Huidige periode]]/OperationeleUitgaven[[#This Row],[Begroting]])-1),(OperationeleUitgaven[[#This Row],[Huidige periode]]/OperationeleUitgaven[[#This Row],[Begroting]])-1))),\"-\")","v":{"v":0,"d":"0.00%"}}]
[null,"Algemeen en administratief","Lonen en salarissen",{"$nulls":3},{"$f":"IFERROR(IF(Omzet=0,\"-\",OperationeleUitgaven[Huidige periode]/Omzet),\"-\")","v":"-"},{"$f":"IFERROR(IF(OperationeleUitgaven[[#This Row],[Vorige periode]]=OperationeleUitgaven[[#This Row],[Huidige periode]],0,IF(OperationeleUitgaven[[#This Row],[Huidige periode]]>OperationeleUitgaven[[#This Row],[Vorige periode]],ABS((OperationeleUitgaven[[#This Row],[Huidige periode]]/OperationeleUitgaven[[#This Row],[Vorige periode]])-1),IF(AND(OperationeleUitgaven[[#This Row],[Huidige periode]]<OperationeleUitgaven[[#This Row],[Vorige periode]],OperationeleUitgaven[[#This Row],[Vorige periode]]<0),-((OperationeleUitgaven[[#This Row],[Huidige periode]]/OperationeleUitgaven[[#This Row],[Vorige periode]])-1),(OperationeleUitgaven[[#This Row],[Huidige periode]]/OperationeleUitgaven[[#This Row],[Vorige periode]])-1))),\"-\")","v":{"v":0,"d":"0.00%"}},{"$f":"IFERROR(IF(OperationeleUitgaven[[#This Row],[Begroting]]=OperationeleUitgaven[[#This Row],[Huidige periode]],0,IF(OperationeleUitgaven[[#This Row],[Huidige periode]]>OperationeleUitgaven[[#This Row],[Begroting]],ABS((OperationeleUitgaven[[#This Row],[Huidige periode]]/OperationeleUitgaven[[#This Row],[Begroting]])-1),IF(AND(OperationeleUitgaven[[#This Row],[Huidige periode]]<OperationeleUitgaven[[#This Row],[Begroting]],OperationeleUitgaven[[#This Row],[Begroting]]<0),-((OperationeleUitgaven[[#This Row],[Huidige periode]]/OperationeleUitgaven[[#This Row],[Begroting]])-1),(OperationeleUitgaven[[#This Row],[Huidige periode]]/OperationeleUitgaven[[#This Row],[Begroting]])-1))),\"-\")","v":{"v":0,"d":"0.00%"}}]
[null,"Algemeen en administratief","Externe diensten",{"$nulls":3},{"$f":"IFERROR(IF(Omzet=0,\"-\",OperationeleUitgaven[Huidige periode]/Omzet),\"-\")","v":"-"},{"$f":"IFERROR(IF(OperationeleUitgaven[[#This Row],[Vorige periode]]=OperationeleUitgaven[[#This Row],[Huidige periode]],0,IF(OperationeleUitgaven[[#This Row],[Huidige periode]]>OperationeleUitgaven[[#This Row],[Vorige periode]],ABS((OperationeleUitgaven[[#This Row],[Huidige periode]]/OperationeleUitgaven[[#This Row],[Vorige periode]])-1),IF(AND(OperationeleUitgaven[[#This Row],[Huidige periode]]<OperationeleUitgaven[[#This Row],[Vorige periode]],OperationeleUitgaven[[#This Row],[Vorige periode]]<0),-((OperationeleUitgaven[[#This Row],[Huidige periode]]/OperationeleUitgaven[[#This Row],[Vorige periode]])-1),(OperationeleUitgaven[[#This Row],[Huidige periode]]/OperationeleUitgaven[[#This Row],[Vorige periode]])-1))),\"-\")","v":{"v":0,"d":"0.00%"}},{"$f":"IFERROR(IF(OperationeleUitgaven[[#This Row],[Begroting]]=OperationeleUitgaven[[#This Row],[Huidige periode]],0,IF(OperationeleUitgaven[[#This Row],[Huidige periode]]>OperationeleUitgaven[[#This Row],[Begroting]],ABS((OperationeleUitgaven[[#This Row],[Huidige periode]]/OperationeleUitgaven[[#This Row],[Begroting]])-1),IF(AND(OperationeleUitgaven[[#This Row],[Huidige periode]]<OperationeleUitgaven[[#This Row],[Begroting]],OperationeleUitgaven[[#This Row],[Begroting]]<0),-((OperationeleUitgaven[[#This Row],[Huidige periode]]/OperationeleUitgaven[[#This Row],[Begroting]])-1),(OperationeleUitgaven[[#This Row],[Huidige periode]]/OperationeleUitgaven[[#This Row],[Begroting]])-1))),\"-\")","v":{"v":0,"d":"0.00%"}}]
[null,"Algemeen en administratief","Benodigdheden",{"$nulls":3},{"$f":"IFERROR(IF(Omzet=0,\"-\",OperationeleUitgaven[Huidige periode]/Omzet),\"-\")","v":"-"},{"$f":"IFERROR(IF(OperationeleUitgaven[[#This Row],[Vorige periode]]=OperationeleUitgaven[[#This Row],[Huidige periode]],0,IF(OperationeleUitgaven[[#This Row],[Huidige periode]]>OperationeleUitgaven[[#This Row],[Vorige periode]],ABS((OperationeleUitgaven[[#This Row],[Huidige periode]]/OperationeleUitgaven[[#This Row],[Vorige periode]])-1),IF(AND(OperationeleUitgaven[[#This Row],[Huidige periode]]<OperationeleUitgaven[[#This Row],[Vorige periode]],OperationeleUitgaven[[#This Row],[Vorige periode]]<0),-((OperationeleUitgaven[[#This Row],[Huidige periode]]/OperationeleUitgaven[[#This Row],[Vorige periode]])-1),(OperationeleUitgaven[[#This Row],[Huidige periode]]/OperationeleUitgaven[[#This Row],[Vorige periode]])-1))),\"-\")","v":{"v":0,"d":"0.00%"}},{"$f":"IFERROR(IF(OperationeleUitgaven[[#This Row],[Begroting]]=OperationeleUitgaven[[#This Row],[Huidige periode]],0,IF(OperationeleUitgaven[[#This Row],[Huidige periode]]>OperationeleUitgaven[[#This Row],[Begroting]],ABS((OperationeleUitgaven[[#This Row],[Huidige periode]]/OperationeleUitgaven[[#This Row],[Begroting]])-1),IF(AND(OperationeleUitgaven[[#This Row],[Huidige periode]]<OperationeleUitgaven[[#This Row],[Begroting]],OperationeleUitgaven[[#This Row],[Begroting]]<0),-((OperationeleUitgaven[[#This Row],[Huidige periode]]/OperationeleUitgaven[[#This Row],[Begroting]])-1),(OperationeleUitgaven[[#This Row],[Huidige periode]]/OperationeleUitgaven[[#This Row],[Begroting]])-1))),\"-\")","v":{"v":0,"d":"0.00%"}}]
[null,"Algemeen en administratief","Maaltijden en amusement",{"$nulls":3},{"$f":"IFERROR(IF(Omzet=0,\"-\",OperationeleUitgaven[Huidige periode]/Omzet),\"-\")","v":"-"},{"$f":"IFERROR(IF(OperationeleUitgaven[[#This Row],[Vorige periode]]=OperationeleUitgaven[[#This Row],[Huidige periode]],0,IF(OperationeleUitgaven[[#This Row],[Huidige periode]]>OperationeleUitgaven[[#This Row],[Vorige periode]],ABS((OperationeleUitgaven[[#This Row],[Huidige periode]]/OperationeleUitgaven[[#This Row],[Vorige periode]])-1),IF(AND(OperationeleUitgaven[[#This Row],[Huidige periode]]<OperationeleUitgaven[[#This Row],[Vorige periode]],OperationeleUitgaven[[#This Row],[Vorige periode]]<0),-((OperationeleUitgaven[[#This Row],[Huidige periode]]/OperationeleUitgaven[[#This Row],[Vorige periode]])-1),(OperationeleUitgaven[[#This Row],[Huidige periode]]/OperationeleUitgaven[[#This Row],[Vorige periode]])-1))),\"-\")","v":{"v":0,"d":"0.00%"}},{"$f":"IFERROR(IF(OperationeleUitgaven[[#This Row],[Begroting]]=OperationeleUitgaven[[#This Row],[Huidige periode]],0,IF(OperationeleUitgaven[[#This Row],[Huidige periode]]>OperationeleUitgaven[[#This Row],[Begroting]],ABS((OperationeleUitgaven[[#This Row],[Huidige periode]]/OperationeleUitgaven[[#This Row],[Begroting]])-1),IF(AND(OperationeleUitgaven[[#This Row],[Huidige periode]]<OperationeleUitgaven[[#This Row],[Begroting]],OperationeleUitgaven[[#This Row],[Begroting]]<0),-((OperationeleUitgaven[[#This Row],[Huidige periode]]/OperationeleUitgaven[[#This Row],[Begroting]])-1),(OperationeleUitgaven[[#This Row],[Huidige periode]]/OperationeleUitgaven[[#This Row],[Begroting]])-1))),\"-\")","v":{"v":0,"d":"0.00%"}}]
[null,"Algemeen en administratief","Huur",{"$nulls":3},{"$f":"IFERROR(IF(Omzet=0,\"-\",OperationeleUitgaven[Huidige periode]/Omzet),\"-\")","v":"-"},{"$f":"IFERROR(IF(OperationeleUitgaven[[#This Row],[Vorige periode]]=OperationeleUitgaven[[#This Row],[Huidige periode]],0,IF(OperationeleUitgaven[[#This Row],[Huidige periode]]>OperationeleUitgaven[[#This Row],[Vorige periode]],ABS((OperationeleUitgaven[[#This Row],[Huidige periode]]/OperationeleUitgaven[[#This Row],[Vorige periode]])-1),IF(AND(OperationeleUitgaven[[#This Row],[Huidige periode]]<OperationeleUitgaven[[#This Row],[Vorige periode]],OperationeleUitgaven[[#This Row],[Vorige periode]]<0),-((OperationeleUitgaven[[#This Row],[Huidige periode]]/OperationeleUitgaven[[#This Row],[Vorige periode]])-1),(OperationeleUitgaven[[#This Row],[Huidige periode]]/OperationeleUitgaven[[#This Row],[Vorige periode]])-1))),\"-\")","v":{"v":0,"d":"0.00%"}},{"$f":"IFERROR(IF(OperationeleUitgaven[[#This Row],[Begroting]]=OperationeleUitgaven[[#This Row],[Huidige periode]],0,IF(OperationeleUitgaven[[#This Row],[Huidige periode]]>OperationeleUitgaven[[#This Row],[Begroting]],ABS((OperationeleUitgaven[[#This Row],[Huidige periode]]/OperationeleUitgaven[[#This Row],[Begroting]])-1),IF(AND(OperationeleUitgaven[[#This Row],[Huidige periode]]<OperationeleUitgaven[[#This Row],[Begroting]],OperationeleUitgaven[[#This Row],[Begroting]]<0),-((OperationeleUitgaven[[#This Row],[Huidige periode]]/OperationeleUitgaven[[#This Row],[Begroting]])-1),(OperationeleUitgaven[[#This Row],[Huidige periode]]/OperationeleUitgaven[[#This Row],[Begroting]])-1))),\"-\")","v":{"v":0,"d":"0.00%"}}]
[null,"Algemeen en administratief","Telefoon",{"$nulls":3},{"$f":"IFERROR(IF(Omzet=0,\"-\",OperationeleUitgaven[Huidige periode]/Omzet),\"-\")","v":"-"},{"$f":"IFERROR(IF(OperationeleUitgaven[[#This Row],[Vorige periode]]=OperationeleUitgaven[[#This Row],[Huidige periode]],0,IF(OperationeleUitgaven[[#This Row],[Huidige periode]]>OperationeleUitgaven[[#This Row],[Vorige periode]],ABS((OperationeleUitgaven[[#This Row],[Huidige periode]]/OperationeleUitgaven[[#This Row],[Vorige periode]])-1),IF(AND(OperationeleUitgaven[[#This Row],[Huidige periode]]<OperationeleUitgaven[[#This Row],[Vorige periode]],OperationeleUitgaven[[#This Row],[Vorige periode]]<0),-((OperationeleUitgaven[[#This Row],[Huidige periode]]/OperationeleUitgaven[[#This Row],[Vorige periode]])-1),(OperationeleUitgaven[[#This Row],[Huidige periode]]/OperationeleUitgaven[[#This Row],[Vorige periode]])-1))),\"-\")","v":{"v":0,"d":"0.00%"}},{"$f":"IFERROR(IF(OperationeleUitgaven[[#This Row],[Begroting]]=OperationeleUitgaven[[#This Row],[Huidige periode]],0,IF(OperationeleUitgaven[[#This Row],[Huidige periode]]>OperationeleUitgaven[[#This Row],[Begroting]],ABS((OperationeleUitgaven[[#This Row],[Huidige periode]]/OperationeleUitgaven[[#This Row],[Begroting]])-1),IF(AND(OperationeleUitgaven[[#This Row],[Huidige periode]]<OperationeleUitgaven[[#This Row],[Begroting]],OperationeleUitgaven[[#This Row],[Begroting]]<0),-((OperationeleUitgaven[[#This Row],[Huidige periode]]/OperationeleUitgaven[[#This Row],[Begroting]])-1),(OperationeleUitgaven[[#This Row],[Huidige periode]]/OperationeleUitgaven[[#This Row],[Begroting]])-1))),\"-\")","v":{"v":0,"d":"0.00%"}}]
[null,"Algemeen en administratief","Water, gas, elektriciteit",{"$nulls":3},{"$f":"IFERROR(IF(Omzet=0,\"-\",OperationeleUitgaven[Huidige periode]/Omzet),\"-\")","v":"-"},{"$f":"IFERROR(IF(OperationeleUitgaven[[#This Row],[Vorige periode]]=OperationeleUitgaven[[#This Row],[Huidige periode]],0,IF(OperationeleUitgaven[[#This Row],[Huidige periode]]>OperationeleUitgaven[[#This Row],[Vorige periode]],ABS((OperationeleUitgaven[[#This Row],[Huidige periode]]/OperationeleUitgaven[[#This Row],[Vorige periode]])-1),IF(AND(OperationeleUitgaven[[#This Row],[Huidige periode]]<OperationeleUitgaven[[#This Row],[Vorige periode]],OperationeleUitgaven[[#This Row],[Vorige periode]]<0),-((OperationeleUitgaven[[#This Row],[Huidige periode]]/OperationeleUitgaven[[#This Row],[Vorige periode]])-1),(OperationeleUitgaven[[#This Row],[Huidige periode]]/OperationeleUitgaven[[#This Row],[Vorige periode]])-1))),\"-\")","v":{"v":0,"d":"0.00%"}},{"$f":"IFERROR(IF(OperationeleUitgaven[[#This Row],[Begroting]]=OperationeleUitgaven[[#This Row],[Huidige periode]],0,IF(OperationeleUitgaven[[#This Row],[Huidige periode]]>OperationeleUitgaven[[#This Row],[Begroting]],ABS((OperationeleUitgaven[[#This Row],[Huidige periode]]/OperationeleUitgaven[[#This Row],[Begroting]])-1),IF(AND(OperationeleUitgaven[[#This Row],[Huidige periode]]<OperationeleUitgaven[[#This Row],[Begroting]],OperationeleUitgaven[[#This Row],[Begroting]]<0),-((OperationeleUitgaven[[#This Row],[Huidige periode]]/OperationeleUitgaven[[#This Row],[Begroting]])-1),(OperationeleUitgaven[[#This Row],[Huidige periode]]/OperationeleUitgaven[[#This Row],[Begroting]])-1))),\"-\")","v":{"v":0,"d":"0.00%"}}]
[null,"Algemeen en administratief","Afschrijving",{"$nulls":3},{"$f":"IFERROR(IF(Omzet=0,\"-\",OperationeleUitgaven[Huidige periode]/Omzet),\"-\")","v":"-"},{"$f":"IFERROR(IF(OperationeleUitgaven[[#This Row],[Vorige periode]]=OperationeleUitgaven[[#This Row],[Huidige periode]],0,IF(OperationeleUitgaven[[#This Row],[Huidige periode]]>OperationeleUitgaven[[#This Row],[Vorige periode]],ABS((OperationeleUitgaven[[#This Row],[Huidige periode]]/OperationeleUitgaven[[#This Row],[Vorige periode]])-1),IF(AND(OperationeleUitgaven[[#This Row],[Huidige periode]]<OperationeleUitgaven[[#This Row],[Vorige periode]],OperationeleUitgaven[[#This Row],[Vorige periode]]<0),-((OperationeleUitgaven[[#This Row],[Huidige periode]]/OperationeleUitgaven[[#This Row],[Vorige periode]])-1),(OperationeleUitgaven[[#This Row],[Huidige periode]]/OperationeleUitgaven[[#This Row],[Vorige periode]])-1))),\"-\")","v":{"v":0,"d":"0.00%"}},{"$f":"IFERROR(IF(OperationeleUitgaven[[#This Row],[Begroting]]=OperationeleUitgaven[[#This Row],[Huidige periode]],0,IF(OperationeleUitgaven[[#This Row],[Huidige periode]]>OperationeleUitgaven[[#This Row],[Begroting]],ABS((OperationeleUitgaven[[#This Row],[Huidige periode]]/OperationeleUitgaven[[#This Row],[Begroting]])-1),IF(AND(OperationeleUitgaven[[#This Row],[Huidige periode]]<OperationeleUitgaven[[#This Row],[Begroting]],OperationeleUitgaven[[#This Row],[Begroting]]<0),-((OperationeleUitgaven[[#This Row],[Huidige periode]]/OperationeleUitgaven[[#This Row],[Begroting]])-1),(OperationeleUitgaven[[#This Row],[Huidige periode]]/OperationeleUitgaven[[#This Row],[Begroting]])-1))),\"-\")","v":{"v":0,"d":"0.00%"}}]
[null,"Algemeen en administratief","Verzekering",{"$nulls":3},{"$f":"IFERROR(IF(Omzet=0,\"-\",OperationeleUitgaven[Huidige periode]/Omzet),\"-\")","v":"-"},{"$f":"IFERROR(IF(OperationeleUitgaven[[#This Row],[Vorige periode]]=OperationeleUitgaven[[#This Row],[Huidige periode]],0,IF(OperationeleUitgaven[[#This Row],[Huidige periode]]>OperationeleUitgaven[[#This Row],[Vorige periode]],ABS((OperationeleUitgaven[[#This Row],[Huidige periode]]/OperationeleUitgaven[[#This Row],[Vorige periode]])-1),IF(AND(OperationeleUitgaven[[#This Row],[Huidige periode]]<OperationeleUitgaven[[#This Row],[Vorige periode]],OperationeleUitgaven[[#This Row],[Vorige periode]]<0),-((OperationeleUitgaven[[#This Row],[Huidige periode]]/OperationeleUitgaven[[#This Row],[Vorige periode]])-1),(OperationeleUitgaven[[#This Row],[Huidige periode]]/OperationeleUitgaven[[#This Row],[Vorige periode]])-1))),\"-\")","v":{"v":0,"d":"0.00%"}},{"$f":"IFERROR(IF(OperationeleUitgaven[[#This Row],[Begroting]]=OperationeleUitgaven[[#This Row],[Huidige periode]],0,IF(OperationeleUitgaven[[#This Row],[Huidige periode]]>OperationeleUitgaven[[#This Row],[Begroting]],ABS((OperationeleUitgaven[[#This Row],[Huidige periode]]/OperationeleUitgaven[[#This Row],[Begroting]])-1),IF(AND(OperationeleUitgaven[[#This Row],[Huidige periode]]<OperationeleUitgaven[[#This Row],[Begroting]],OperationeleUitgaven[[#This Row],[Begroting]]<0),-((OperationeleUitgaven[[#This Row],[Huidige periode]]/OperationeleUitgaven[[#This Row],[Begroting]])-1),(OperationeleUitgaven[[#This Row],[Huidige periode]]/OperationeleUitgaven[[#This Row],[Begroting]])-1))),\"-\")","v":{"v":0,"d":"0.00%"}}]
[null,"Algemeen en administratief","Reparatie en onderhoud",{"$nulls":3},{"$f":"IFERROR(IF(Omzet=0,\"-\",OperationeleUitgaven[Huidige periode]/Omzet),\"-\")","v":"-"},{"$f":"IFERROR(IF(OperationeleUitgaven[[#This Row],[Vorige periode]]=OperationeleUitgaven[[#This Row],[Huidige periode]],0,IF(OperationeleUitgaven[[#This Row],[Huidige periode]]>OperationeleUitgaven[[#This Row],[Vorige periode]],ABS((OperationeleUitgaven[[#This Row],[Huidige periode]]/OperationeleUitgaven[[#This Row],[Vorige periode]])-1),IF(AND(OperationeleUitgaven[[#This Row],[Huidige periode]]<OperationeleUitgaven[[#This Row],[Vorige periode]],OperationeleUitgaven[[#This Row],[Vorige periode]]<0),-((OperationeleUitgaven[[#This Row],[Huidige periode]]/OperationeleUitgaven[[#This Row],[Vorige periode]])-1),(OperationeleUitgaven[[#This Row],[Huidige periode]]/OperationeleUitgaven[[#This Row],[Vorige periode]])-1))),\"-\")","v":{"v":0,"d":"0.00%"}},{"$f":"IFERROR(IF(OperationeleUitgaven[[#This Row],[Begroting]]=OperationeleUitgaven[[#This Row],[Huidige periode]],0,IF(OperationeleUitgaven[[#This Row],[Huidige periode]]>OperationeleUitgaven[[#This Row],[Begroting]],ABS((OperationeleUitgaven[[#This Row],[Huidige periode]]/OperationeleUitgaven[[#This Row],[Begroting]])-1),IF(AND(OperationeleUitgaven[[#This Row],[Huidige periode]]<OperationeleUitgaven[[#This Row],[Begroting]],OperationeleUitgaven[[#This Row],[Begroting]]<0),-((OperationeleUitgaven[[#This Row],[Huidige periode]]/OperationeleUitgaven[[#This Row],[Begroting]])-1),(OperationeleUitgaven[[#This Row],[Huidige periode]]/OperationeleUitgaven[[#This Row],[Begroting]])-1))),\"-\")","v":{"v":0,"d":"0.00%"}}]
[null,"Algemeen en administratief","Overige uitgaven (specificeren)",{"$nulls":3},{"$f":"IFERROR(IF(Omzet=0,\"-\",OperationeleUitgaven[Huidige periode]/Omzet),\"-\")","v":"-"},{"$f":"IFERROR(IF(OperationeleUitgaven[[#This Row],[Vorige periode]]=OperationeleUitgaven[[#This Row],[Huidige periode]],0,IF(OperationeleUitgaven[[#This Row],[Huidige periode]]>OperationeleUitgaven[[#This Row],[Vorige periode]],ABS((OperationeleUitgaven[[#This Row],[Huidige periode]]/OperationeleUitgaven[[#This Row],[Vorige periode]])-1),IF(AND(OperationeleUitgaven[[#This Row],[Huidige periode]]<OperationeleUitgaven[[#This Row],[Vorige periode]],OperationeleUitgaven[[#This Row],[Vorige periode]]<0),-((OperationeleUitgaven[[#This Row],[Huidige periode]]/OperationeleUitgaven[[#This Row],[Vorige periode]])-1),(OperationeleUitgaven[[#This Row],[Huidige periode]]/OperationeleUitgaven[[#This Row],[Vorige periode]])-1))),\"-\")","v":{"v":0,"d":"0.00%"}},{"$f":"IFERROR(IF(OperationeleUitgaven[[#This Row],[Begroting]]=OperationeleUitgaven[[#This Row],[Huidige periode]],0,IF(OperationeleUitgaven[[#This Row],[Huidige periode]]>OperationeleUitgaven[[#This Row],[Begroting]],ABS((OperationeleUitgaven[[#This Row],[Huidige periode]]/OperationeleUitgaven[[#This Row],[Begroting]])-1),IF(AND(OperationeleUitgaven[[#This Row],[Huidige periode]]<OperationeleUitgaven[[#This Row],[Begroting]],OperationeleUitgaven[[#This Row],[Begroting]]<0),-((OperationeleUitgaven[[#This Row],[Huidige periode]]/OperationeleUitgaven[[#This Row],[Begroting]])-1),(OperationeleUitgaven[[#This Row],[Huidige periode]]/OperationeleUitgaven[[#This Row],[Begroting]])-1))),\"-\")","v":{"v":0,"d":"0.00%"}}]
[null,"Algemeen en administratief","Overige uitgaven (specificeren)",{"$nulls":3},{"$f":"IFERROR(IF(Omzet=0,\"-\",OperationeleUitgaven[Huidige periode]/Omzet),\"-\")","v":"-"},{"$f":"IFERROR(IF(OperationeleUitgaven[[#This Row],[Vorige periode]]=OperationeleUitgaven[[#This Row],[Huidige periode]],0,IF(OperationeleUitgaven[[#This Row],[Huidige periode]]>OperationeleUitgaven[[#This Row],[Vorige periode]],ABS((OperationeleUitgaven[[#This Row],[Huidige periode]]/OperationeleUitgaven[[#This Row],[Vorige periode]])-1),IF(AND(OperationeleUitgaven[[#This Row],[Huidige periode]]<OperationeleUitgaven[[#This Row],[Vorige periode]],OperationeleUitgaven[[#This Row],[Vorige periode]]<0),-((OperationeleUitgaven[[#This Row],[Huidige periode]]/OperationeleUitgaven[[#This Row],[Vorige periode]])-1),(OperationeleUitgaven[[#This Row],[Huidige periode]]/OperationeleUitgaven[[#This Row],[Vorige periode]])-1))),\"-\")","v":{"v":0,"d":"0.00%"}},{"$f":"IFERROR(IF(OperationeleUitgaven[[#This Row],[Begroting]]=OperationeleUitgaven[[#This Row],[Huidige periode]],0,IF(OperationeleUitgaven[[#This Row],[Huidige periode]]>OperationeleUitgaven[[#This Row],[Begroting]],ABS((OperationeleUitgaven[[#This Row],[Huidige periode]]/OperationeleUitgaven[[#This Row],[Begroting]])-1),IF(AND(OperationeleUitgaven[[#This Row],[Huidige periode]]<OperationeleUitgaven[[#This Row],[Begroting]],OperationeleUitgaven[[#This Row],[Begroting]]<0),-((OperationeleUitgaven[[#This Row],[Huidige periode]]/OperationeleUitgaven[[#This Row],[Begroting]])-1),(OperationeleUitgaven[[#This Row],[Huidige periode]]/OperationeleUitgaven[[#This Row],[Begroting]])-1))),\"-\")","v":{"v":0,"d":"0.00%"}}]
[null,"Totale operationele uitgaven",null,{"$f":"SUBTOTAL(109,OperationeleUitgaven[Vorige periode])","v":0},{"$f":"SUBTOTAL(109,OperationeleUitgaven[Begroting])","v":0},{"$f":"SUBTOTAL(109,OperationeleUitgaven[Huidige periode])","v":0},{"$f":"SUBTOTAL(109,OperationeleUitgaven[Huidige periode als % van verkopen])","v":{"v":0,"d":"0.00%"}},{"$f":"SUBTOTAL(109,OperationeleUitgaven[% wijziging t.o.v. vorige periode])","v":{"v":0,"d":"0.00%"}},{"$f":"SUBTOTAL(109,OperationeleUitgaven[% wijziging t.o.v. begroting])","v":{"v":0,"d":"0.00%"}}]

{"sheet":"Belastingen","index":4,"n_rows":10,"n_cols":9,"rows_kept":10,"merged":[[0,7,2,8]]}
[null,{"$f":"Werkmap_titel","v":"Winst-en verliesrekening"}]
[null,{"$f":"Bedrijfsnaam","v":"Bedrijfsnaam"},"Vermeld in duizenden"]
[null,"Belastingen",{"$f":"IFERROR(Belastingen[[#Totals],[Huidige periode]],\"-\")","v":0}]
[null,"Type","Beschrijving","Vorige periode","Begroting","Huidige periode","Huidige periode als % van verkopen","% wijziging t.o.v. vorige periode","% wijziging t.o.v. begroting"]
[null,"Belastingen","Inkomstenbelastingen",{"$nulls":3},{"$f":"IFERROR(IF(Omzet=0,\"-\",Belastingen[Huidige periode]/Omzet),\"-\")","v":"-"},{"$f":"IFERROR(IF(Belastingen[[#This Row],[Vorige periode]]=Belastingen[[#This Row],[Huidige periode]],0,IF(Belastingen[[#This Row],[Huidige periode]]>Belastingen[[#This Row],[Vorige periode]],ABS((Belastingen[[#This Row],[Huidige periode]]/Belastingen[[#This Row],[Vorige periode]])-1),IF(AND(Belastingen[[#This Row],[Huidige periode]]<Belastingen[[#This Row],[Vorige periode]],Belastingen[[#This Row],[Vorige periode]]<0),-((Belastingen[[#This Row],[Huidige periode]]/Belastingen[[#This Row],[Vorige periode]])-1),(Belastingen[[#This Row],[Huidige periode]]/Belastingen[[#This Row],[Vorige periode]])-1))),\"-\")","v":{"v":0,"d":"0.00%"}},{"$f":"IFERROR(IF(Belastingen[[#This Row],[Begroting]]=Belastingen[[#This Row],[Huidige periode]],0,IF(Belastingen[[#This Row],[Huidige periode]]>Belastingen[[#This Row],[Begroting]],ABS((Belastingen[[#This Row],[Huidige periode]]/Belastingen[[#This Row],[Begroting]])-1),IF(AND(Belastingen[[#This Row],[Huidige periode]]<Belastingen[[#This Row],[Begroting]],Belastingen[[#This Row],[Begroting]]<0),-((Belastingen[[#This Row],[Huidige periode]]/Belastingen[[#This Row],[Begroting]])-1),(Belastingen[[#This Row],[Huidige periode]]/Belastingen[[#This Row],[Begroting]])-1))),\"-\")","v":{"v":0,"d":"0.00%"}}]
[null,"Belastingen","Belastingen over salaris",{"$nulls":3},{"$f":"IFERROR(IF(Omzet=0,\"-\",Belastingen[Huidige periode]/Omzet),\"-\")","v":"-"},{"$f":"IFERROR(IF(Belastingen[[#This Row],[Vorige periode]]=Belastingen[[#This Row],[Huidige periode]],0,IF(Belastingen[[#This Row],[Huidige periode]]>Belastingen[[#This Row],[Vorige periode]],ABS((Belastingen[[#This Row],[Huidige periode]]/Belastingen[[#This Row],[Vorige periode]])-1),IF(AND(Belastingen[[#This Row],[Huidige periode]]<Belastingen[[#This Row],[Vorige periode]],Belastingen[[#This Row],[Vorige periode]]<0),-((Belastingen[[#This Row],[Huidige periode]]/Belastingen[[#This Row],[Vorige periode]])-1),(Belastingen[[#This Row],[Huidige periode]]/Belastingen[[#This Row],[Vorige periode]])-1))),\"-\")","v":{"v":0,"d":"0.00%"}},{"$f":"IFERROR(IF(Belastingen[[#This Row],[Begroting]]=Belastingen[[#This Row],[Huidige periode]],0,IF(Belastingen[[#This Row],[Huidige periode]]>Belastingen[[#This Row],[Begroting]],ABS((Belastingen[[#This Row],[Huidige periode]]/Belastingen[[#This Row],[Begroting]])-1),IF(AND(Belastingen[[#This Row],[Huidige periode]]<Belastingen[[#This Row],[Begroting]],Belastingen[[#This Row],[Begroting]]<0),-((Belastingen[[#This Row],[Huidige periode]]/Belastingen[[#This Row],[Begroting]])-1),(Belastingen[[#This Row],[Huidige periode]]/Belastingen[[#This Row],[Begroting]])-1))),\"-\")","v":{"v":0,"d":"0.00%"}}]
[null,"Belastingen","Belastingen over onroerend goed",{"$nulls":3},{"$f":"IFERROR(IF(Omzet=0,\"-\",Belastingen[Huidige periode]/Omzet),\"-\")","v":"-"},{"$f":"IFERROR(IF(Belastingen[[#This Row],[Vorige periode]]=Belastingen[[#This Row],[Huidige periode]],0,IF(Belastingen[[#This Row],[Huidige periode]]>Belastingen[[#This Row],[Vorige periode]],ABS((Belastingen[[#This Row],[Huidige periode]]/Belastingen[[#This Row],[Vorige periode]])-1),IF(AND(Belastingen[[#This Row],[Huidige periode]]<Belastingen[[#This Row],[Vorige periode]],Belastingen[[#This Row],[Vorige periode]]<0),-((Belastingen[[#This Row],[Huidige periode]]/Belastingen[[#This Row],[Vorige periode]])-1),(Belastingen[[#This Row],[Huidige periode]]/Belastingen[[#This Row],[Vorige periode]])-1))),\"-\")","v":{"v":0,"d":"0.00%"}},{"$f":"IFERROR(IF(Belastingen[[#This Row],[Begroting]]=Belastingen[[#This Row],[Huidige periode]],0,IF(Belastingen[[#This Row],[Huidige periode]]>Belastingen[[#This Row],[Begroting]],ABS((Belastingen[[#This Row],[Huidige periode]]/Belastingen[[#This Row],[Begroting]])-1),IF(AND(Belastingen[[#This Row],[Huidige periode]]<Belastingen[[#This Row],[Begroting]],Belastingen[[#This Row],[Begroting]]<0),-((Belastingen[[#This Row],[Huidige periode]]/Belastingen[[#This Row],[Begroting]])-1),(Belastingen[[#This Row],[Huidige periode]]/Belastingen[[#This Row],[Begroting]])-1))),\"-\")","v":{"v":0,"d":"0.00%"}}]
[null,"Belastingen","Overige belastingen (specificeren)",{"$nulls":3},{"$f":"IFERROR(IF(Omzet=0,\"-\",Belastingen[Huidige periode]/Omzet),\"-\")","v":"-"},{"$f":"IFERROR(IF(Belastingen[[#This Row],[Vorige periode]]=Belastingen[[#This Row],[Huidige periode]],0,IF(Belastingen[[#This Row],[Huidige periode]]>Belastingen[[#This Row],[Vorige periode]],ABS((Belastingen[[#This Row],[Huidige periode]]/Belastingen[[#This Row],[Vorige periode]])-1),IF(AND(Belastingen[[#This Row],[Huidige periode]]<Belastingen[[#This Row],[Vorige periode]],Belastingen[[#This Row],[Vorige periode]]<0),-((Belastingen[[#This Row],[Huidige periode]]/Belastingen[[#This Row],[Vorige periode]])-1),(Belastingen[[#This Row],[Huidige periode]]/Belastingen[[#This Row],[Vorige periode]])-1))),\"-\")","v":{"v":0,"d":"0.00%"}},{"$f":"IFERROR(IF(Belastingen[[#This Row],[Begroting]]=Belastingen[[#This Row],[Huidige periode]],0,IF(Belastingen[[#This Row],[Huidige periode]]>Belastingen[[#This Row],[Begroting]],ABS((Belastingen[[#This Row],[Huidige periode]]/Belastingen[[#This Row],[Begroting]])-1),IF(AND(Belastingen[[#This Row],[Huidige periode]]<Belastingen[[#This Row],[Begroting]],Belastingen[[#This Row],[Begroting]]<0),-((Belastingen[[#This Row],[Huidige periode]]/Belastingen[[#This Row],[Begroting]])-1),(Belastingen[[#This Row],[Huidige periode]]/Belastingen[[#This Row],[Begroting]])-1))),\"-\")","v":{"v":0,"d":"0.00%"}}]
[null,"Belastingen","Overige belastingen (specificeren)",{"$nulls":3},{"$f":"IFERROR(IF(Omzet=0,\"-\",Belastingen[Huidige periode]/Omzet),\"-\")","v":"-"},{"$f":"IFERROR(IF(Belastingen[[#This Row],[Vorige periode]]=Belastingen[[#This Row],[Huidige periode]],0,IF(Belastingen[[#This Row],[Huidige periode]]>Belastingen[[#This Row],[Vorige periode]],ABS((Belastingen[[#This Row],[Huidige periode]]/Belastingen[[#This Row],[Vorige periode]])-1),IF(AND(Belastingen[[#This Row],[Huidige periode]]<Belastingen[[#This Row],[Vorige periode]],Belastingen[[#This Row],[Vorige periode]]<0),-((Belastingen[[#This Row],[Huidige periode]]/Belastingen[[#This Row],[Vorige periode]])-1),(Belastingen[[#This Row],[Huidige periode]]/Belastingen[[#This Row],[Vorige periode]])-1))),\"-\")","v":{"v":0,"d":"0.00%"}},{"$f":"IFERROR(IF(Belastingen[[#This Row],[Begroting]]=Belastingen[[#This Row],[Huidige periode]],0,IF(Belastingen[[#This Row],[Huidige periode]]>Belastingen[[#This Row],[Begroting]],ABS((Belastingen[[#This Row],[Huidige periode]]/Belastingen[[#This Row],[Begroting]])-1),IF(AND(Belastingen[[#This Row],[Huidige periode]]<Belastingen[[#This Row],[Begroting]],Belastingen[[#This Row],[Begroting]]<0),-((Belastingen[[#This Row],[Huidige periode]]/Belastingen[[#This Row],[Begroting]])-1),(Belastingen[[#This Row],[Huidige periode]]/Belastingen[[#This Row],[Begroting]])-1))),\"-\")","v":{"v":0,"d":"0.00%"}}]
[null,"Totale belastingen",null,{"$f":"SUBTOTAL(109,Belastingen[Vorige periode])","v":0},{"$f":"SUBTOTAL(109,Belastingen[Begroting])","v":0},{"$f":"SUBTOTAL(109,Belastingen[Huidige periode])","v":0},{"$f":"IFERROR(SUBTOTAL(109,Belastingen[Huidige periode als % van verkopen]),\"-\")","v":{"v":0,"d":"0.00%"}},{"$f":"SUBTOTAL(109,Belastingen[% wijziging t.o.v. vorige periode])","v":{"v":0,"d":"0.00%"}},{"$f":"SUBTOTAL(109,Belastingen[% wijziging t.o.v. begroting])","v":{"v":0,"d":"0.00%"}}]

{"sheet":"Categorieën","index":5,"n_rows":8,"n_cols":2,"rows_kept":8}
[null,"Categorieën"]
[null,"Omzet"]
[null,"Verkoopkosten"]
[null,"Inkomsten"]
[null,"Verkoop en marketing"]
[null,"Onderzoek en ontwikkeling"]
[null,"Algemeen en administratief"]
[null,"Belastingen"]